bitfinex/quotes_ETHUSD_20251217
["timestamp","ask_amount","ask_price","bid_price","bid_amount"]
[1765997243867,8.3288,2822.3,2821.0,0.00721929]
[1765997244187,0.579,2822.2,2821.1,0.1542]
[1765997244482,8.9078,2822.2,2821.0,0.00721929]
[1765997244692,8.36024434,2822.1,2821.0,0.00721929]
[1765997244873,0.579,2822.2,2821.0,0.16141929]
[1765997245074,0.579,2822.2,2821.0,0.00721929]
[1765997245475,0.579,2822.2,2821.0,0.37785958]
[1765997245680,0.579,2822.2,2821.1,0.1542]
[1765997245879,0.4247,2822.2,2821.1,0.405504]
[1765997246078,0.4247,2822.2,2821.1,0.86988423]
[1765997246885,0.4247,2822.2,2821.4,9.75468816]
[1765997247087,0.4247,2822.2,2821.6,0.405504]
[1765997247394,1.276,2823.9,2821.6,0.405504]
[1765997247687,8.9078,2823.8,2822.1,0.46438023]
[1765997247886,0.579,2823.8,2821.6,0.405504]
[1765997248056,5.9787,2823.5,2821.6,0.405504]
[1765997248264,5.9787,2823.5,2821.7,0.19272332]
[1765997248790,5.9787,2823.5,2821.8,3.54383726]
[1765997248991,5.9787,2823.5,2821.7,3.73663474]
[1765997249288,5.9787,2823.5,2821.7,7.28059759]
[1765997249289,2.3501,2823.5,2821.7,7.28059759]
[1765997249469,0.579,2823.8,2822.0,9.34918416]
[1765997249671,8.3288,2823.7,2822.1,0.93491842]
[1765997249991,8.3288,2823.7,2821.8,0.46438023]
[1765997250384,0.579,2823.8,2821.8,0.46438023]
[1765997250781,0.579,2823.8,2822.0,0.46438023]
[1765997250980,5.9787,2823.6,2822.0,0.46438023]
[1765997251181,2.3501,2823.5,2822.0,0.46438023]
[1765997251394,2.3501,2823.5,2822.1,0.40080919]
[1765997251592,8.3288,2823.5,2822.1,0.40080919]
[1765997251768,0.579,2823.8,2822.1,0.40080919]
[1765997251769,8.639048,2823.7,2822.1,0.40080919]
[1765997251972,5.9787,2823.7,2822.1,0.40080919]
[1765997252174,0.579,2823.8,2822.1,0.40080919]
[1765997252175,5.9787,2823.5,2822.1,0.40080919]
[1765997252488,8.3288,2823.7,2822.1,0.40080919]
[1765997252674,0.579,2823.8,2822.1,0.40080919]
[1765997252874,0.579,2823.8,2822.2,7.08666996]
[1765997253282,0.579,2823.8,2822.6,0.405504]
[1765997253595,8.3288,2825.5,2823.3,0.405504]
[1765997253793,0.579,2825.4,2823.5,0.405504]
[1765997253988,0.579,2825.4,2823.6,0.46438023]
[1765997253989,0.89078,2825.3,2823.6,0.46438023]
[1765997254302,0.579,2825.4,2823.6,0.46438023]
[1765997254303,0.46978,2825.4,2823.7,0.405504]
[1765997254508,2.3501,2824.7,2822.4,0.86988423]
[1765997254801,0.61044434,2824.6,2822.6,0.405504]
[1765997254967,0.579,2824.6,2822.8,0.46438023]
[1765997255174,0.579,2824.6,2823.0,0.405504]
[1765997255373,8.3288,2824.5,2822.9,1.10925022]
[1765997255585,8.3288,2824.5,2822.8,0.405504]
[1765997255787,0.579,2824.6,2822.8,0.90531004]
[1765997256004,0.579,2824.6,2823.1,9.68984502]
[1765997256311,0.001,2823.5,2823.1,9.68984502]
[1765997256605,0.001,2823.5,2823.2,0.49980102]
[1765997256779,0.001,2823.5,2823.3,1.0189646]
[1765997256982,0.001,2823.5,2823.2,0.49980102]
[1765997256983,0.001,2823.5,2821.5,0.002]
[1765997257180,0.001,2823.5,2821.7,3.543908]
[1765997257383,0.001,2823.5,2821.5,0.002]
[1765997257384,0.001,2823.5,2821.8,3.54380892]
[1765997257596,0.001,2823.5,2821.9,0.46438023]
[1765997257973,0.001,2823.5,2821.5,0.50182237]
[1765997257974,8.3298,2823.5,2821.5,3.54619855]
[1765997258179,0.03144434,2823.2,2821.6,1.32360436]
[1765997258431,0.579,2823.1,2821.6,1.32360436]
[1765997258581,0.579,2823.1,2821.5,0.002]
[1765997258780,0.579,2823.1,2821.5,3.54620591]
[1765997259003,0.579,2823.1,2821.5,0.002]
[1765997259205,8.36024434,2823.0,2821.5,0.002]
[1765997260904,0.03144434,2822.8,2821.5,0.002]
[1765997261109,7.7347,2822.7,2821.5,0.002]
[1765997261311,0.579,2822.6,2821.5,0.002]
[1765997262123,8.3137,2822.6,2821.5,0.002]
[1765997262418,7.7347,2822.3,2821.5,0.002]
[1765997263079,0.03144434,2822.4,2821.0,0.00721929]
[1765997263080,5.4803,2821.9,2821.0,0.00721929]
[1765997263431,1.12703,2821.8,2821.0,0.00721929]
[1765997263585,0.579,2821.8,2821.0,0.00721929]
[1765997264810,0.579,2821.8,2821.5,0.002]
[1765997266697,8.3137,2821.8,2821.0,0.00721929]
[1765997267381,0.579,2821.8,2821.0,0.00721929]
[1765997268914,0.03144434,2821.6,2821.0,0.00721929]
[1765997269210,1.04338023,2821.8,2821.0,0.00721929]
[1765997269510,0.03144434,2821.7,2821.0,0.00721929]
[1765997269712,7.7347,2821.6,2821.0,0.00721929]
[1765997270431,0.03144434,2821.7,2821.0,0.00721929]
[1765997270620,2.2544,2821.3,2820.3,3.20075758]
[1765997270816,0.579,2821.2,2820.3,3.20985758]
[1765997271128,0.5699,2821.1,2820.3,3.20075758]
[1765997271427,0.579,2821.5,2820.3,3.20075758]
[1765997272126,0.03144434,2821.4,2820.3,3.20075758]
[1765997272504,7.76614434,2821.4,2820.3,3.20075758]
[1765997272699,7.76614434,2821.4,2820.0,4.573733]
[1765997272700,7.64132234,2821.2,2820.0,4.573733]
[1765997272911,7.7347,2820.9,2820.0,4.573733]
[1765997273112,0.579,2820.8,2820.0,4.573733]
[1765997275528,2.2544,2820.4,2819.8,0.002]
[1765997275727,0.22544,2820.3,2819.8,0.002]
[1765997275929,12.559472,2820.7,2819.8,0.002]
[1765997276099,0.579,2820.8,2819.8,0.002]
[1765997276100,5.4803,2820.6,2819.8,0.002]
[1765997276303,2.2544,2820.5,2819.8,0.002]
[1765997276508,0.579,2820.8,2819.8,0.002]
[1765997277107,2.2544,2820.9,2819.8,0.002]
[1765997277412,0.83137,2820.9,2819.8,0.002]
[1765997277601,7.7347,2821.5,2819.9,3.2008]
[1765997277938,2.2544,2821.4,2819.9,3.2008]
[1765997278104,0.03144434,2821.4,2820.0,0.58]
[1765997278306,2.2544,2821.2,2820.1,0.58]
[1765997278615,5.51174434,2821.4,2820.1,3.7808]
[1765997278833,0.55117443,2821.3,2820.1,4.15888]
[1765997279035,0.55117443,2821.3,2820.2,3.2008]
[1765997279245,8.28587443,2821.3,2820.2,3.2008]
[1765997279535,2.2544,2821.1,2819.8,0.002]
[1765997279720,0.03144434,2821.2,2820.3,0.58]
[1765997279721,5.70888443,2821.0,2820.3,0.58]
[1765997280034,5.70888443,2821.0,2820.1,0.58]
[1765997280035,5.4803,2820.8,2820.1,0.58]
[1765997280226,5.4803,2820.8,2819.8,0.002]
[1765997280422,5.4803,2820.8,2819.9,0.58]
[1765997280623,5.4803,2820.8,2819.8,0.002]
[1765997280945,7.7347,2820.7,2819.8,0.002]
[1765997281120,5.4803,2821.1,2819.9,0.58]
[1765997281309,5.4803,2820.7,2820.0,0.58]
[1765997281640,7.7347,2820.7,2819.9,0.579]
[1765997281830,7.7347,2820.7,2819.8,0.002]
[1765997282136,7.7347,2820.7,2819.8,0.581]
[1765997282437,0.03144434,2821.0,2818.4,3.241]
[1765997282438,2.2544,2820.0,2818.4,3.241]
[1765997282605,5.4803,2820.2,2818.5,0.579]
[1765997282811,5.4803,2819.6,2818.5,0.579]
[1765997283144,5.4803,2818.8,2818.0,0.3125]
[1765997283317,9.83658875,2819.6,2817.2,0.579]
[1765997283318,2.2544,2818.3,2817.2,0.579]
[1765997283636,2.2544,2818.3,2816.5,0.03550505]
[1765997283637,5.4803,2818.4,2816.2,3.5575]
[1765997283834,0.87622313,2818.8,2816.3,1.26236846]
[1765997283835,0.50535696,2818.3,2816.3,1.26236846]
[1765997284003,5.4803,2817.9,2816.5,3.5575]
[1765997284209,5.4803,2817.7,2816.3,9.97092721]
[1765997284436,2.2544,2817.2,2816.4,0.58]
[1765997284605,2.2544,2817.6,2816.4,0.58]
[1765997284806,5.4803,2817.5,2816.5,0.58]
[1765997285112,5.4803,2817.5,2816.1,3.26618457]
[1765997285113,0.46438023,2818.3,2816.1,6.82368457]
[1765997285323,30.0,2818.4,2816.2,3.5575]
[1765997285324,5.4803,2818.0,2816.2,3.5575]
[1765997285526,2.2544,2817.6,2816.2,3.5575]
[1765997285728,2.2544,2817.3,2816.3,0.581]
[1765997286023,7.7347,2817.3,2816.3,0.581]
[1765997286223,1.73047977,2818.2,2816.1,3.26618457]
[1765997286224,1.77365282,2818.1,2816.1,3.26618457]
[1765997286428,2.2544,2817.1,2816.1,3.84718457]
[1765997286650,5.4803,2816.4,2816.0,0.72]
[1765997286941,2.2544,2816.2,2816.0,0.72]
[1765997287106,1.71689319,2817.2,2815.0,2.0]
[1765997287107,5.4803,2816.0,2815.0,2.0]
[1765997287313,2.11797833,2817.0,2815.1,3.58779438]
[1765997287517,5.4803,2817.2,2815.5,5.4234]
[1765997287750,2.13465189,2817.8,2815.8,0.46438023]
[1765997287751,5.4803,2817.8,2815.8,0.46438023]
[1765997288062,0.46438023,2818.4,2816.8,5.4234]
[1765997288063,2.2544,2818.4,2816.8,5.4234]
[1765997288280,0.22544,2818.3,2817.0,5.4234]
[1765997288573,5.4803,2819.2,2817.4,5.4234]
[1765997288747,2.2544,2819.0,2817.6,5.4234]
[1765997288914,0.39292815,2819.5,2816.6,5.4234]
[1765997288915,5.4803,2818.3,2816.6,5.4234]
[1765997289112,2.3013,2817.9,2816.8,5.4234]
[1765997289340,2.3013,2817.9,2816.9,0.582]
[1765997289520,5.8233,2818.2,2816.9,0.582]
[1765997289732,5.8233,2817.9,2816.5,5.7128]
[1765997290044,5.8233,2819.0,2816.9,5.7128]
[1765997290244,2.3013,2818.5,2816.9,5.7128]
[1765997290558,5.8233,2818.0,2817.6,0.002]
[1765997290854,5.8233,2818.0,2816.5,0.46438023]
[1765997290855,0.46438023,2817.8,2816.5,0.002]
[1765997291015,0.405504,2818.2,2816.6,0.583]
[1765997291016,2.1603,2817.5,2816.6,0.583]
[1765997291216,2.1603,2817.5,2816.7,0.583]
[1765997291413,0.46438023,2818.3,2816.7,6.5089]
[1765997291636,2.1603,2818.1,2816.7,6.5089]
[1765997291861,7.9203,2818.5,2816.7,6.5089]
[1765997292018,5.76,2818.5,2816.7,5.9259]
[1765997292346,0.18495885,2819.1,2816.9,5.9259]
[1765997292347,2.1603,2818.2,2816.9,5.9259]
[1765997292514,7.9203,2818.1,2817.0,0.583]
[1765997292735,0.64933908,2819.1,2816.5,0.002]
[1765997292736,2.1603,2818.6,2817.1,6.5089]
[1765997292932,5.76,2818.3,2816.6,5.9259]
[1765997293171,0.18495885,2819.1,2816.7,0.583]
[1765997293172,0.46438023,2818.0,2816.7,0.583]
[1765997293333,2.1603,2818.0,2816.7,0.583]
[1765997293692,0.03144434,2819.4,2816.9,17.46258]
[1765997293968,0.03144434,2820.6,2816.9,17.46258]
[1765997293969,2.1603,2820.9,2818.5,5.9259]
[1765997294153,2.1603,2820.8,2819.0,6.39028023]
[1765997294471,2.1603,2821.2,2819.2,5.9259]
[1765997294655,5.517175,2820.9,2819.2,5.9259]
[1765997294829,7.9203,2821.0,2819.2,5.9259]
[1765997295032,7.9203,2821.4,2819.5,5.9259]
[1765997295258,7.9203,2821.4,2819.9,5.9259]
[1765997295463,7.9203,2821.4,2820.1,5.9259]
[1765997295776,0.001,2821.6,2820.1,5.9259]
[1765997296136,0.001,2821.6,2819.4,5.9259]
[1765997296137,22.672413,2821.2,2819.4,5.9259]
[1765997296466,2.1603,2821.3,2819.6,5.9259]
[1765997296637,2.1603,2821.2,2819.8,5.9259]
[1765997297262,2.1603,2821.0,2819.9,0.584]
[1765997297434,5.76,2820.9,2820.0,0.584]
[1765997297638,2.1603,2820.7,2819.6,5.9259]
[1765997297844,2.1603,2820.7,2817.8,3.58019605]
[1765997297845,0.46438023,2820.4,2819.2,5.9259]
[1765997298054,4.183528,2820.3,2819.3,0.584]
[1765997298255,7.9203,2820.2,2819.3,0.584]
[1765997298439,2.1603,2820.0,2819.4,0.584]
[1765997298641,2.1603,2819.8,2819.5,0.584]
[1765997298850,0.79203,2819.9,2819.5,0.584]
[1765997299035,5.76,2820.3,2819.5,0.584]
[1765997299237,2.1603,2820.2,2819.5,0.584]
[1765997299438,0.46438023,2820.7,2817.9,5.9259]
[1765997299439,16.947813,2820.1,2817.9,5.9259]
[1765997299645,2.62468023,2820.5,2818.7,5.9259]
[1765997299847,2.1603,2820.2,2818.8,6.5099]
[1765997300068,2.1603,2820.2,2818.8,0.584]
[1765997300265,5.79144434,2820.8,2819.4,5.9259]
[1765997300476,2.62468023,2820.7,2819.5,0.584]
[1765997300848,2.62468023,2820.7,2819.5,6.5099]
[1765997301058,2.1603,2820.5,2819.6,0.584]
[1765997301267,0.49582457,2821.0,2819.0,5.9259]
[1765997301268,2.10975479,2820.7,2819.0,5.9259]
[1765997301575,2.10975479,2820.7,2817.4,3.580775]
[1765997301576,5.76,2819.9,2818.1,5.9259]
[1765997301871,5.76,2819.9,2818.4,5.9259]
[1765997301872,2.1603,2819.8,2818.4,5.9259]
[1765997302605,1.74249255,2820.5,2818.5,0.03547986]
[1765997302606,0.46438023,2820.4,2818.5,0.03547986]
[1765997302873,1.78038265,2821.8,2819.4,3.54680101]
[1765997302874,2.1603,2820.9,2819.4,3.54680101]
[1765997303072,5.76,2821.0,2819.7,5.9259]
[1765997303769,5.76,2820.9,2819.8,0.584]
[1765997303940,5.76,2820.8,2819.9,0.584]
[1765997304140,5.76,2820.8,2819.5,5.9259]
[1765997304363,5.76,2820.6,2819.0,5.9259]
[1765997304676,5.76,2820.4,2819.1,0.584]
[1765997305200,2.1603,2820.4,2819.2,5.9259]
[1765997305341,2.1603,2820.3,2819.2,5.9259]
[1765997305660,2.1603,2820.3,2819.1,0.584]
[1765997305661,0.47738696,2820.2,2819.4,5.9259]
[1765997305856,2.1603,2820.7,2819.4,5.9259]
[1765997306059,26.38352923,2821.1,2819.6,5.9259]
[1765997306271,17.033756,2821.0,2819.7,6.5099]
[1765997306572,7.9203,2821.1,2819.7,6.5099]
[1765997306737,5.76,2821.1,2819.1,0.03144434]
[1765997306943,24.302428,2820.6,2818.7,5.9259]
[1765997307144,2.1603,2819.9,2818.5,5.9259]
[1765997307355,2.1603,2819.6,2818.5,5.9259]
[1765997307569,2.1603,2819.6,2818.6,0.584]
[1765997307877,2.63768696,2819.5,2818.6,0.584]
[1765997308048,0.47738696,2819.5,2818.7,0.584]
[1765997308566,2.1603,2819.9,2818.7,6.5099]
[1765997308769,4.293812,2820.3,2818.9,5.9259]
[1765997308947,0.18490397,2821.0,2818.2,7.80712124]
[1765997308948,2.1603,2820.1,2819.0,6.5099]
[1765997309149,2.1603,2820.1,2819.1,0.584]
[1765997309351,4.725252,2820.5,2819.2,5.9259]
[1765997309659,2.1603,2820.4,2819.2,5.9259]
[1765997310189,2.1603,2820.4,2818.6,9.29032647]
[1765997310190,2.1603,2820.0,2818.7,5.9259]
[1765997310389,2.1603,2819.8,2818.8,0.584]
[1765997310844,5.76,2819.4,2818.1,5.9259]
[1765997311044,2.7363,2819.3,2818.2,0.584]
[1765997311245,2.7363,2819.3,2818.3,5.9259]
[1765997311246,0.576,2819.3,2818.3,5.9259]
[1765997311574,4.753549,2819.6,2818.3,5.9259]
[1765997311757,2.1603,2819.3,2818.4,0.584]
[1765997311954,2.1603,2819.2,2818.5,0.584]
[1765997313246,2.1603,2819.2,2817.8,1.0]
[1765997313247,5.76,2819.2,2818.6,0.583]
[1765997313473,6.124328,2819.1,2817.4,5.9259]
[1765997313654,2.1603,2818.9,2817.6,5.9259]
[1765997313848,5.76,2818.9,2817.6,5.9259]
[1765997314078,2.1603,2818.5,2816.8,5.9259]
[1765997314263,2.1603,2818.5,2817.0,5.9259]
[1765997314591,5.76,2818.8,2817.1,6.5089]
[1765997314786,2.1603,2818.4,2817.1,6.5089]
[1765997314949,5.76,2818.4,2817.1,5.9259]
[1765997315256,5.76,2818.4,2816.6,9.29032647]
[1765997315257,0.576,2818.3,2817.3,5.9259]
[1765997315459,2.1603,2818.4,2817.4,0.583]
[1765997315666,0.03144434,2818.7,2817.5,5.9259]
[1765997315848,2.1603,2818.9,2817.5,6.9259]
[1765997316053,2.1603,2818.9,2818.3,0.002]
[1765997316255,2.1603,2818.8,2818.4,0.583]
[1765997316573,2.62468023,2819.1,2818.4,0.583]
[1765997316775,2.1603,2819.1,2818.4,0.583]
[1765997316984,5.76,2818.6,2817.3,1.0]
[1765997317284,2.1603,2818.5,2817.4,0.583]
[1765997317470,7.9203,2818.5,2817.5,0.583]
[1765997317667,0.79203,2818.4,2817.5,0.583]
[1765997317980,2.1603,2818.5,2817.5,0.583]
[1765997318581,0.49582457,2819.0,2816.9,6.9279]
[1765997318582,5.76,2818.4,2816.9,6.9279]
[1765997318752,5.76,2819.1,2817.2,1.002]
[1765997319078,2.1603,2818.5,2817.3,6.5089]
[1765997319285,2.1603,2818.5,2817.3,5.9259]
[1765997319471,2.1603,2818.5,2817.4,7.20169]
[1765997319472,0.79203,2818.5,2817.4,7.20169]
[1765997319670,2.068036,2818.8,2817.6,6.9279]
[1765997319869,2.1603,2818.8,2817.6,6.9279]
[1765997320490,2.1603,2819.2,2818.0,5.9259]
[1765997320694,2.2528,2819.9,2818.3,1.002]
[1765997320984,0.001,2820.8,2819.0,5.4482]
[1765997321171,5.474082,2820.6,2819.2,6.4502]
[1765997321375,8.1278,2820.6,2819.2,9.99724761]
[1765997321557,2.2528,2820.2,2817.8,5.4482]
[1765997321753,2.2528,2820.2,2817.4,0.86988423]
[1765997321754,8.1278,2820.1,2818.7,1.002]
[1765997321955,2.2528,2819.9,2818.8,6.0312]
[1765997323190,8.1278,2819.9,2818.4,6.4502]
[1765997323473,0.03144434,2819.4,2818.5,0.583]
[1765997323887,0.03144434,2819.4,2818.5,6.0312]
[1765997324255,0.03144434,2819.4,2818.5,0.583]
[1765997324457,0.22842443,2819.3,2818.6,5.4482]
[1765997324655,0.03144434,2819.8,2818.8,0.002]
[1765997324869,0.03144434,2819.4,2818.8,0.002]
[1765997325066,0.03144434,2819.4,2818.9,0.583]
[1765997325499,0.03144434,2819.6,2818.9,6.0312]
[1765997326259,0.03144434,2819.8,2818.9,6.0312]
[1765997326893,0.03144434,2820.0,2818.9,6.0312]
[1765997327205,0.03144434,2820.0,2819.0,5.4482]
[1765997327561,5.875,2820.5,2819.2,5.4482]
[1765997327763,0.001,2820.8,2819.8,5.4482]
[1765997327986,0.001,2820.8,2819.7,0.9706]
[1765997327987,0.001,2820.8,2819.9,0.583]
[1765997328299,5.875,2821.4,2820.0,6.4178]
[1765997328504,0.81278,2821.3,2820.1,5.4482]
[1765997328862,0.03144434,2820.8,2820.2,0.583]
[1765997329172,2.28424434,2821.3,2820.2,5.4482]
[1765997329373,2.28424434,2821.3,2819.4,7.81599796]
[1765997329374,0.03144434,2821.5,2820.4,5.4482]
[1765997329586,0.03144434,2821.5,2820.1,0.9686]
[1765997329895,0.001,2821.6,2820.2,0.9686]
[1765997330062,0.22952443,2821.6,2820.4,5.4482]
[1765997330263,0.03144434,2822.0,2820.8,6.4168]
[1765997330469,0.03144434,2821.8,2820.5,5.4482]
[1765997330783,2.28424434,2821.4,2820.6,0.583]
[1765997331093,5.875,2821.6,2820.7,0.583]
[1765997331601,0.03144434,2821.8,2820.7,0.583]
[1765997331900,2.2528,2821.7,2820.7,0.583]
[1765997332101,0.001,2822.1,2820.8,5.4482]
[1765997332802,0.001,2823.9,2822.2,7.81599796]
[1765997332999,0.001,2823.9,2822.9,0.7391]
[1765997333186,0.70858984,2824.2,2823.3,0.7391]
[1765997333500,2.2528,2825.7,2824.2,5.4482]
[1765997333674,2.2528,2826.2,2824.5,0.7391]
[1765997333881,2.2528,2826.2,2824.8,5.4482]
[1765997333882,1.2538,2826.2,2824.8,5.4482]
[1765997334198,0.001,2827.2,2825.1,1.7381]
[1765997334396,13.443207,2826.8,2825.3,5.4482]
[1765997334563,13.443207,2826.8,2824.3,1.278]
[1765997334564,5.875,2826.5,2825.4,0.586]
[1765997334765,7.565254,2826.2,2825.4,0.586]
[1765997334972,5.875,2826.3,2825.4,0.586]
[1765997335178,3.491691,2826.2,2825.5,0.586]
[1765997335373,9.366691,2826.2,2825.6,0.586]
[1765997335581,5.875,2826.2,2825.0,5.4482]
[1765997335797,5.875,2826.2,2825.1,0.586]
[1765997335982,1.75172298,2826.9,2825.2,0.586]
[1765997336175,1.75172298,2826.9,2824.5,13.26419796]
[1765997336176,2.2528,2826.4,2824.5,13.26419796]
[1765997336410,8.1278,2826.0,2824.6,0.586]
[1765997336599,0.03144434,2826.9,2823.8,1.7381]
[1765997336600,11.190062,2825.7,2823.8,1.7381]
[1765997336799,5.875,2825.3,2823.4,7.81599796]
[1765997337000,8.1278,2824.8,2823.4,7.81599796]
[1765997337322,9.198411,2824.6,2823.2,7.1863]
[1765997337480,0.46438023,2825.4,2822.9,7.81599796]
[1765997337481,2.2528,2824.4,2822.9,7.81599796]
[1765997337687,5.875,2824.1,2823.0,0.586]
[1765997338100,5.875,2824.1,2823.1,0.586]
[1765997338318,8.1278,2824.1,2823.1,0.586]
[1765997338519,0.405504,2825.2,2822.7,5.4482]
[1765997338520,2.2528,2823.9,2822.7,5.4482]
[1765997338685,2.2528,2823.9,2822.8,0.585]
[1765997338686,2.2528,2823.8,2822.8,0.585]
[1765997338884,8.043744,2824.3,2822.8,5.4482]
[1765997339091,8.043744,2824.3,2822.5,1.7381]
[1765997339092,8.1278,2823.9,2822.9,0.585]
[1765997339385,2.2528,2823.5,2821.9,1.7381]
[1765997339607,0.22528,2823.4,2822.0,5.4482]
[1765997339815,8.1278,2823.2,2821.8,5.47964434]
[1765997339979,0.22528,2823.4,2822.1,6.0332]
[1765997340184,0.22528,2823.4,2822.2,5.48363334]
[1765997340386,2.52642,2823.1,2821.3,1.7381]
[1765997340585,2.2528,2822.8,2821.5,5.4482]
[1765997340849,2.2528,2822.4,2821.0,5.4482]
[1765997341124,5.875,2822.9,2821.4,5.4482]
[1765997341339,0.252642,2823.0,2821.2,7.81599796]
[1765997341340,0.252642,2823.0,2821.8,5.4482]
[1765997341627,2.2528,2823.1,2821.9,0.585]
[1765997341982,0.22528,2823.4,2822.1,5.4482]
[1765997342182,8.1278,2823.2,2822.2,0.585]
[1765997342647,2.2528,2823.8,2822.3,5.4482]
[1765997342803,0.001,2824.1,2822.7,5.4482]
[1765997343128,8.1278,2824.8,2823.4,5.4482]
[1765997343324,6.941178,2824.7,2823.4,5.4482]
[1765997343531,2.2528,2824.3,2823.5,0.585]
[1765997343736,0.6941178,2824.6,2823.5,0.585]
[1765997343938,0.46438023,2824.8,2823.5,6.0332]
[1765997344250,0.001,2825.3,2822.9,5.4482]
[1765997344251,1.75563962,2824.5,2822.9,5.4482]
[1765997344400,3.5404642,2825.3,2823.3,5.2789631]
[1765997344402,2.2528,2824.9,2823.3,5.2789631]
[1765997344720,5.875,2824.9,2823.4,5.4482]
[1765997344933,5.875,2824.9,2823.5,6.0342]
[1765997345090,2.2528,2825.0,2823.6,1.7371]
[1765997345283,2.2528,2825.0,2823.7,5.4482]
[1765997345715,2.2528,2825.0,2823.6,1.7371]
[1765997345716,13.996511,2824.9,2822.9,1.7371]
[1765997345905,8.1278,2824.4,2823.1,5.4482]
[1765997346107,0.82488696,2824.3,2823.2,0.586]
[1765997346281,0.82488696,2824.3,2823.2,6.0342]
[1765997346482,5.875,2824.6,2823.0,1.7371]
[1765997346683,0.46438023,2823.9,2823.1,0.586]
[1765997346893,0.46438023,2824.3,2823.1,0.586]
[1765997347094,0.46438023,2824.3,2823.1,6.0342]
[1765997347616,5.875,2824.0,2823.2,0.586]
[1765997347780,2.2528,2824.1,2823.2,0.586]
[1765997347982,5.875,2824.4,2823.2,0.586]
[1765997348197,0.46438023,2824.3,2823.2,0.586]
[1765997348398,2.2528,2824.6,2823.2,6.0342]
[1765997348703,5.875,2824.8,2823.5,5.4482]
[1765997348895,2.28424434,2825.0,2823.2,0.586]
[1765997348896,2.2528,2825.0,2823.6,1.7371]
[1765997349118,2.2528,2825.0,2823.8,5.4482]
[1765997349310,0.46438023,2824.9,2823.8,5.4482]
[1765997349511,2.3181,2824.9,2823.8,5.4482]
[1765997349706,0.001,2825.0,2823.8,5.4482]
[1765997349912,0.001,2825.0,2824.1,7.6118]
[1765997350111,0.001,2825.0,2824.2,0.585]
[1765997350348,0.001,2825.0,2823.6,5.8747]
[1765997350528,0.001,2825.0,2823.1,0.43694834]
[1765997350529,2.3181,2824.6,2823.1,5.8747]
[1765997350721,2.3181,2824.6,2823.0,1.7371]
[1765997350722,2.3181,2824.6,2823.2,6.3157]
[1765997350916,2.3181,2824.6,2823.4,5.7307]
[1765997351231,6.07988023,2824.7,2823.5,5.7307]
[1765997351604,0.46438023,2824.8,2823.5,7.4678]
[1765997351945,7.9308,2824.1,2822.9,5.7307]
[1765997352240,2.1451,2824.1,2822.5,7.4678]
[1765997352443,2.1451,2823.6,2822.0,7.4678]
[1765997352756,7.9308,2823.5,2822.3,5.7307]
[1765997352930,7.9308,2823.4,2822.1,0.585]
[1765997353443,8.39518023,2824.1,2822.5,5.7307]
[1765997353612,0.46438023,2823.5,2822.6,0.586]
[1765997353808,0.46438023,2823.6,2822.6,1.39138]
[1765997354143,2.1451,2823.9,2822.6,7.12208]
[1765997354441,7.9308,2823.6,2822.3,1.7371]
[1765997354617,5.7857,2823.3,2822.4,0.585]
[1765997355545,7.56660962,2823.3,2821.8,1.7371]
[1765997355719,5.7857,2822.9,2821.6,5.7307]
[1765997355911,7.9308,2822.9,2821.7,0.585]
[1765997356107,7.9308,2822.9,2821.8,0.63157]
[1765997356341,7.9308,2822.9,2821.9,0.585]
[1765997356560,7.9308,2823.4,2821.9,6.3157]
[1765997356764,2.1451,2823.4,2822.1,5.7307]
[1765997357069,2.1451,2823.4,2821.9,0.585]
[1765997357070,7.9308,2823.5,2822.3,5.7307]
[1765997357244,7.9308,2823.5,2822.4,0.585]
[1765997357934,7.9308,2823.5,2822.5,0.585]
[1765997358135,0.46438023,2824.0,2822.5,6.3157]
[1765997358136,2.1451,2823.7,2822.5,6.3157]
[1765997358345,2.60948023,2823.7,2822.5,5.7307]
[1765997358543,5.7857,2823.8,2822.6,6.3157]
[1765997358743,2.1451,2824.1,2822.7,5.7307]
[1765997358949,2.1451,2824.1,2822.8,6.36227]
[1765997359347,0.03144434,2824.6,2822.0,5.7327]
[1765997359348,2.1451,2823.9,2822.0,5.7327]
[1765997359577,2.1451,2823.9,2822.1,0.585]
[1765997359578,2.1451,2823.5,2822.1,0.585]
[1765997359738,5.7857,2823.7,2822.3,5.7307]
[1765997359940,5.7857,2823.7,2822.3,7.4678]
[1765997360142,5.7857,2823.7,2822.1,4.12838485]
[1765997360143,5.7857,2823.7,2822.1,4.15982919]
[1765997360361,5.7857,2823.7,2822.4,5.7307]
[1765997360641,5.7857,2823.7,2822.5,5.7307]
[1765997360850,5.7857,2823.7,2822.6,0.585]
[1765997361262,1.76361375,2824.2,2822.4,3.86]
[1765997361263,2.1451,2823.4,2822.4,3.86]
[1765997361467,2.1451,2823.2,2822.0,5.7327]
[1765997361664,2.1451,2823.2,2822.1,0.585]
[1765997361665,2.1451,2823.1,2822.1,0.585]
[1765997362383,7.9308,2823.0,2822.2,0.585]
[1765997363037,7.9308,2823.0,2822.3,0.585]
[1765997363244,7.9308,2823.0,2822.0,0.002]
[1765997363590,7.9308,2822.8,2822.1,0.585]
[1765997364175,0.46438023,2823.2,2822.1,0.585]
[1765997364345,7.9308,2823.3,2822.1,0.585]